bitfinex/quotes_BTCUSD_20241022
["timestamp","ask_amount","ask_price","bid_price","bid_amount"]
[1729626250417,0.1749,67509.0,67508.0,0.29908915]
[1729626250659,0.1749,67509.0,67508.0,0.41527844]
[1729626251121,0.1749,67509.0,67508.0,0.29908915]
[1729626251817,0.1749,67509.0,67508.0,0.41527844]
[1729626252049,0.1749,67509.0,67508.0,0.42027844]
[1729626260081,0.1749,67509.0,67508.0,0.42110344]
[1729626262460,0.001652,67513.0,67512.0,0.005]
[1729626262623,0.001652,67513.0,67512.0,0.53942074]
[1729626262820,0.001652,67513.0,67512.0,0.64645873]
[1729626262980,0.001678,67518.0,67517.0,0.38129929]
[1729626263177,0.001678,67518.0,67517.0,0.53025844]
[1729626273047,0.000826,67521.0,67520.0,0.017]
[1729626273266,0.0823,67526.0,67525.0,0.155093]
[1729626273544,0.0823,67526.0,67525.0,0.27128229]
[1729626277546,0.0823,67526.0,67525.0,0.42024144]
[1729626283350,0.0823,67526.0,67525.0,0.30405215]
[1729626283564,0.0823,67526.0,67525.0,0.42024144]
[1729626285072,0.083125,67526.0,67525.0,0.42024144]
[1729626285496,0.09620293,67526.0,67525.0,0.42024144]
[1729626298906,0.083125,67526.0,67525.0,0.42024144]
[1729626299130,0.09432567,67526.0,67525.0,0.42024144]
[1729626299368,0.09432567,67526.0,67525.0,0.53643073]
[1729626299624,0.01202567,67526.0,67525.0,0.53643073]
[1729626299884,0.001678,67540.0,67525.0,0.53643073]
[1729626299885,0.001678,67540.0,67539.0,0.155062]
[1729626300140,0.001678,67540.0,67539.0,0.30402115]
[1729626300393,0.01102276,67540.0,67539.0,0.53936071]
[1729626300669,0.01102276,67540.0,67539.0,0.53639973]
[1729626300866,0.076526,67545.0,67542.0,0.153056]
[1729626301150,0.076526,67545.0,67542.0,0.53735446]
[1729626301384,0.076526,67545.0,67542.0,0.53439373]
[1729626303347,0.076526,67545.0,67542.0,0.53639373]
[1729626303579,0.0826,67550.0,67546.0,0.38742558]
[1729626303814,0.0826,67550.0,67546.0,0.53638473]
[1729626314460,0.0826,67550.0,67546.0,0.64638473]
[1729626315357,0.22196409,67554.0,67546.0,0.64638473]
[1729626315609,0.000826,67555.0,67554.0,0.255029]
[1729626315858,0.00792428,67555.0,67554.0,0.53513753]
[1729626316092,0.000826,67555.0,67554.0,0.53017744]
[1729626316556,0.0791,67560.0,67559.0,0.005]
[1729626316812,0.22364209,67575.0,67559.0,0.005]
[1729626316813,0.30106409,67568.0,67567.0,0.007]
[1729626317060,0.30106409,67568.0,67567.0,0.42014944]
[1729626317300,0.30106409,67568.0,67567.0,0.53633873]
[1729626317537,0.0791,67568.0,67567.0,0.41922787]
[1729626317765,0.0791,67568.0,67567.0,0.53400754]
[1729626318011,0.0791,67568.0,67567.0,0.41689438]
[1729626318259,0.0791,67574.0,67569.0,0.15080453]
[1729626318483,0.0791,67574.0,67569.0,0.29976368]
[1729626320511,0.0791,67574.0,67569.0,0.41595297]
[1729626328124,0.001678,67575.0,67574.0,0.15079353]
[1729626328334,0.001678,67575.0,67574.0,0.30271203]
[1729626328970,0.00902033,67575.0,67574.0,0.30271203]
[1729626329152,0.001678,67575.0,67574.0,0.30271203]
[1729626329355,0.00902033,67575.0,67574.0,0.30271203]
[1729626329573,0.001678,67575.0,67574.0,0.30271203]
[1729626330015,0.00908502,67575.0,67574.0,0.30271203]
[1729626330229,0.001678,67575.0,67574.0,0.30271203]
[1729626330688,0.00908502,67575.0,67574.0,0.30271203]
[1729626330922,0.001678,67575.0,67574.0,0.29975268]
[1729626331497,0.079278,67575.0,67574.0,0.149985]
[1729626331867,0.17732823,67575.0,67574.0,0.53132273]
[1729626332081,0.17732823,67575.0,67574.0,0.53213126]
[1729626332298,0.079278,67575.0,67574.0,0.53213126]
[1729626332508,0.001676,67586.0,67578.0,0.26078553]
[1729626332720,0.001676,67586.0,67585.0,0.149961]
[1729626332933,0.001676,67586.0,67585.0,0.53129873]
[1729626334382,0.001676,67586.0,67585.0,0.53210726]
[1729626335605,0.001676,67586.0,67585.0,0.41591797]
[1729626337054,0.001676,67586.0,67585.0,0.53210726]
[1729626337272,0.001676,67586.0,67585.0,0.41591797]
[1729626337482,0.001676,67586.0,67585.0,0.53210726]
[1729626337915,0.001676,67586.0,67585.0,0.41591797]
[1729626339455,0.001676,67586.0,67585.0,0.64210726]
[1729626340536,0.001676,67586.0,67585.0,0.73620726]
[1729626340766,0.001676,67594.0,67585.0,0.73620726]
[1729626340767,0.001676,67594.0,67593.0,0.15075253]
[1729626340981,0.001676,67594.0,67593.0,0.41590097]
[1729626362126,0.001676,67594.0,67593.0,0.29971168]
[1729626363924,0.00586747,67615.0,67599.0,0.15073953]
[1729626363925,0.0824,67602.0,67599.0,0.15073953]
[1729626364221,0.22196409,67602.0,67599.0,0.53503559]
[1729626364441,0.22196409,67602.0,67599.0,0.53207726]
[1729626364661,0.00917179,67600.0,67599.0,0.53207726]
[1729626364881,0.00056113,67600.0,67599.0,0.53207726]
[1729626365100,0.0084429,67600.0,67599.0,0.53207726]
[1729626365332,0.00056113,67600.0,67599.0,0.53207726]
[1729626366929,0.00056113,67600.0,67599.0,0.29969868]
[1729626367151,0.00056113,67600.0,67599.0,0.53207726]
[1729626368489,0.00138613,67600.0,67599.0,0.53207726]
[1729626372945,0.00138613,67600.0,67599.0,0.64207726]
[1729626374534,0.00907737,67600.0,67599.0,0.64207726]
[1729626374753,0.00138613,67600.0,67599.0,0.64207726]
[1729626375206,0.0961,67605.0,67604.0,0.16072853]
[1729626375433,0.22196409,67612.0,67611.0,0.26690182]
[1729626375720,0.22196409,67612.0,67611.0,0.41586097]
[1729626375916,0.0798,67616.0,67614.0,0.00280853]
[1729626376145,0.0798,67616.0,67614.0,0.53204426]
[1729626377278,0.0001,67621.0,67614.0,0.53204426]
[1729626377511,0.078,67620.0,67614.0,0.53204426]
[1729626377747,0.0001,67621.0,67614.0,0.53204426]
[1729626377748,0.0001,67621.0,67614.0,0.64204426]
[1729626379326,5.001676,67623.0,67622.0,0.00280853]
[1729626379550,5.001676,67623.0,67622.0,0.53202626]
[1729626380915,5.001676,67623.0,67622.0,0.41583697]
[1729626384641,5.001676,67623.0,67622.0,0.29883915]
[1729626384860,5.001676,67623.0,67622.0,0.41502844]
[1729626392224,0.178,67619.0,67613.0,0.002]
[1729626392475,0.178,67619.0,67616.0,0.147892]
[1729626392706,0.1683,67619.0,67616.0,0.147892]
[1729626392970,0.1683,67619.0,67615.0,0.295789]
[1729626393218,0.093,67618.0,67617.0,0.14789]
[1729626393716,0.1683,67618.0,67617.0,0.14789]
[1729626394223,0.17485009,67618.0,67617.0,0.14789]
[1729626394685,0.1683,67618.0,67617.0,0.14789]
[1729626397311,0.093,67618.0,67613.0,0.41198929]
[1729626397549,0.093,67618.0,67614.0,0.591592]
[1729626397789,0.093,67618.0,67613.0,0.11618929]
[1729626397790,0.093,67618.0,67615.0,0.295792]
[1729626398052,0.0753,67617.0,67616.0,0.147892]
[1729626399481,0.0753,67617.0,67616.0,0.149892]
[1729626400667,0.0753,67617.0,67616.0,0.147892]
[1729626401121,0.0753,67617.0,67616.0,0.149892]
[1729626402853,0.0753,67617.0,67616.0,0.26608129]
[1729626404813,0.08181298,67617.0,67616.0,0.26608129]
[1729626405278,0.0753,67617.0,67616.0,0.26408129]
[1729626406939,0.0753,67617.0,67616.0,0.26608129]
[1729626407650,0.0753,67617.0,67616.0,0.26408129]
[1729626408369,0.27811871,67616.0,67615.0,0.295792]
[1729626408832,0.27811871,67616.0,67615.0,0.443688]
[1729626409363,0.27811871,67616.0,67615.0,0.445688]
[1729626409621,0.27811871,67616.0,67615.0,0.443688]
[1729626409851,0.27811871,67616.0,67615.0,0.445688]
[1729626410103,0.27811871,67616.0,67615.0,0.443688]
[1729626410328,0.27811871,67616.0,67615.0,0.445688]
[1729626411051,0.27811871,67616.0,67615.0,0.443688]
[1729626411828,0.37491871,67616.0,67615.0,0.443688]
[1729626412046,0.42044223,67616.0,67615.0,0.443688]
[1729626412270,0.37491871,67616.0,67615.0,0.443688]
[1729626412697,0.37491871,67616.0,67615.0,0.445688]
[1729626413375,0.38143971,67616.0,67615.0,0.445688]
[1729626416521,0.38143971,67616.0,67615.0,0.443688]
[1729626417244,0.38143971,67616.0,67615.0,0.445688]
[1729626419025,0.38143971,67616.0,67615.0,0.443688]
[1729626419253,0.38143971,67616.0,67615.0,0.149546]
[1729626419966,0.42769783,67616.0,67615.0,0.149546]
[1729626420437,0.42769783,67616.0,67615.0,0.151546]
[1729626420654,0.38143971,67616.0,67615.0,0.151546]
[1729626421089,0.38143971,67616.0,67615.0,0.149546]
[1729626424675,0.38143971,67616.0,67615.0,0.00165]
[1729626424928,0.38143971,67616.0,67615.0,0.149546]
[1729626425554,0.38143971,67616.0,67615.0,0.151546]
[1729626425765,0.38143971,67616.0,67615.0,0.26773529]
[1729626426198,0.37491871,67616.0,67615.0,0.26773529]
[1729626427088,0.27811871,67616.0,67615.0,0.26773529]
[1729626428968,0.27811871,67616.0,67615.0,0.149546]
[1729626429192,0.41224473,67616.0,67615.0,0.149546]
[1729626429427,0.41224473,67616.0,67607.0,0.295824]
[1729626429428,0.17959147,67612.0,67607.0,0.295824]
[1729626429647,0.17959147,67612.0,67606.0,0.002]
[1729626429648,0.00419147,67610.0,67606.0,0.002]
[1729626429872,0.00419147,67610.0,67609.0,0.17106001]
[1729626430109,0.00419147,67610.0,67609.0,0.147909]
[1729626430974,0.00419147,67610.0,67609.0,0.149909]
[1729626431207,0.0772,67611.0,67610.0,0.149907]
[1729626432084,0.08139147,67611.0,67610.0,0.147907]
[1729626432981,0.0772,67611.0,67610.0,0.149907]
[1729626444053,0.0772,67611.0,67610.0,0.151557]
[1729626445275,0.077725,67615.0,67614.0,0.147898]
[1729626445698,0.077725,67615.0,67614.0,0.149898]
[1729626446539,0.000825,67615.0,67614.0,0.149898]
[1729626446761,0.000825,67615.0,67614.0,0.29885715]
[1729626447807,0.00057819,67615.0,67614.0,0.29885715]
[1729626448016,0.22254228,67615.0,67614.0,0.29885715]
[1729626448213,0.00057819,67615.0,67614.0,0.29885715]
[1729626453266,0.08187819,67615.0,67614.0,0.149898]
[1729626453486,0.08187819,67615.0,67614.0,0.147898]
[1729626453696,0.08187819,67615.0,67610.0,0.41365229]
[1729626453697,0.0963,67612.0,67610.0,0.149556]
[1729626453908,0.0963,67612.0,67610.0,0.00165]
[1729626454117,0.0963,67612.0,67610.0,0.149555]
[1729626454118,0.0791,67611.0,67610.0,0.149555]
[1729626455829,0.20213375,67615.0,67610.0,0.00165]
[1729626456036,0.20213375,67615.0,67610.0,0.00365]
[1729626456246,0.20213375,67615.0,67610.0,0.00165]
[1729626456458,0.20213375,67615.0,67610.0,0.297463]
[1729626456459,0.20295875,67615.0,67610.0,0.297463]
[1729626456667,0.20295875,67615.0,67611.0,0.147903]
[1729626457080,0.000825,67615.0,67611.0,0.147903]
[1729626457286,0.000825,67615.0,67610.0,0.297463]
[1729626457496,0.000825,67615.0,67612.0,0.147902]
[1729626458734,0.000825,67615.0,67613.0,0.1479]
[1729626458964,0.000825,67615.0,67610.0,0.297463]
[1729626458965,0.1724,67614.0,67610.0,0.297463]
[1729626459171,0.1724,67614.0,67611.0,0.147904]
[1729626459805,0.1724,67614.0,67611.0,0.147903]
[1729626460027,0.1724,67614.0,67612.0,0.147902]
[1729626460472,0.1724,67614.0,67611.0,0.147904]
[1729626460690,0.1724,67614.0,67611.0,0.295809]
[1729626460906,0.1724,67614.0,67610.0,0.297462]
[1729626461109,0.1724,67614.0,67611.0,0.147904]
[1729626461316,0.1724,67614.0,67610.0,0.00165]
[1729626461525,0.1724,67614.0,67611.0,0.147903]
[1729626462841,0.1724,67614.0,67611.0,0.147904]
[1729626463872,0.1724,67614.0,67611.0,0.147903]
[1729626464313,0.1724,67614.0,67610.0,0.149556]
[1729626464540,0.1724,67614.0,67611.0,0.147903]
[1729626464756,0.1724,67614.0,67610.0,0.00165]
[1729626465190,0.1724,67614.0,67613.0,0.1479]
[1729626465477,0.1724,67614.0,67612.0,0.147902]
[1729626466404,0.1724,67614.0,67613.0,0.1479]
[1729626466643,0.1724,67614.0,67613.0,0.1499]
[1729626467985,0.1724,67614.0,67613.0,0.1479]
[1729626470508,0.081,67614.0,67613.0,0.1479]
[1729626473702,0.081,67614.0,67613.0,0.1499]
[1729626473938,0.081,67614.0,67613.0,0.1479]
[1729626474371,0.081,67614.0,67611.0,0.149555]
[1729626474605,0.11618929,67612.0,67611.0,0.001652]
[1729626474822,0.321104,67611.0,67610.0,0.00165]
[1729626475023,0.51437599,67611.0,67610.0,0.00165]
[1729626475443,0.47006315,67611.0,67610.0,0.00165]
[1729626476109,1.08790156,67611.0,67610.0,0.00165]
[1729626476339,0.87247315,67611.0,67610.0,0.00165]
[1729626476548,0.91677888,67611.0,67610.0,0.00165]
[1729626476755,0.87247315,67611.0,67610.0,0.00165]
[1729626477404,0.9167698,67611.0,67610.0,0.00165]
[1729626478496,0.87247315,67611.0,67610.0,0.00165]
[1729626478949,1.06572101,67611.0,67610.0,0.00165]
[1729626479382,1.02667293,67611.0,67610.0,0.00165]
[1729626479849,1.02167293,67611.0,67610.0,0.00165]
[1729626480065,0.87271378,67611.0,67610.0,0.00165]
[1729626480713,0.88271378,67611.0,67610.0,0.00165]
[1729626480928,1.27266519,67611.0,67610.0,0.00165]
[1729626481146,1.230199,67611.0,67610.0,0.00165]
[1729626481590,1.22467768,67611.0,67610.0,0.00165]
[1729626481824,1.09100971,67611.0,67610.0,0.00165]
[1729626482044,1.31873042,67611.0,67610.0,0.00165]
[1729626482278,1.37977174,67611.0,67610.0,0.00165]
[1729626482517,1.33368054,67611.0,67610.0,0.00165]
[1729626482753,1.4959559,67611.0,67610.0,0.00165]
[1729626482967,1.5959559,67611.0,67610.0,0.00165]
[1729626483633,0.015,67609.0,67608.0,0.00165]
[1729626483862,1.21118254,67609.0,67608.0,0.00165]
[1729626485437,1.21318254,67609.0,67608.0,0.00165]
[1729626486784,1.21350092,67609.0,67608.0,0.00165]
[1729626487255,1.21550092,67609.0,67608.0,0.00165]
[1729626487485,1.47491098,67609.0,67608.0,0.00165]
[1729626488185,1.36446007,67609.0,67608.0,0.00165]
[1729626488479,1.47490692,67609.0,67608.0,0.00165]
[1729626488729,1.07749692,67609.0,67608.0,0.00165]
[1729626488974,1.47490692,67609.0,67608.0,0.00165]
[1729626489436,1.36446007,67609.0,67608.0,0.00165]
[1729626491278,1.45275615,67609.0,67608.0,0.00165]
[1729626491509,1.31751266,67609.0,67608.0,0.00165]
[1729626491746,1.27142659,67609.0,67608.0,0.00165]
[1729626492686,0.1,67599.0,67586.0,0.22361409]
[1729626492919,0.54636915,67598.0,67593.0,0.22196409]
[1729626493141,0.54636915,67598.0,67592.0,0.002]
[1729626493142,0.14895915,67598.0,67592.0,0.002]
[1729626493379,0.005,67601.0,67592.0,0.002]
[1729626493380,0.005,67608.0,67597.0,0.11618929]
[1729626493639,0.005,67608.0,67593.0,0.295888]
[1729626493640,0.22196409,67598.0,67595.0,0.295878]
[1729626493883,0.005,67604.0,67597.0,0.147935]
[1729626494588,0.152921,67604.0,67596.0,0.147936]
[1729626495015,0.147921,67604.0,67596.0,0.147936]
[1729626495261,0.152921,67604.0,67596.0,0.147936]
[1729626495501,0.152921,67604.0,67596.0,0.147937]
[1729626495737,0.18950562,67604.0,67596.0,0.147937]
[1729626497424,0.005,67603.0,67596.0,0.147937]
[1729626497656,0.152922,67603.0,67595.0,0.147939]
[1729626499047,0.14793,67600.0,67592.0,0.0783]
[1729626499270,0.16688146,67600.0,67592.0,0.0783]
[1729626499739,0.16688146,67600.0,67592.0,0.226244]
[1729626499967,0.01895146,67600.0,67593.0,0.147943]
[1729626500194,0.01895146,67600.0,67592.0,0.0783]
[1729626500449,0.16688146,67600.0,67592.0,0.147946]
[1729626500669,0.08001591,67599.0,67592.0,0.147946]
[1729626500912,0.08001591,67599.0,67586.0,0.11783929]
[1729626500913,0.147942,67594.0,67586.0,0.151608]
[1729626501150,0.11618929,67597.0,67586.0,0.151608]
[1729626501151,0.14794,67595.0,67593.0,0.02316162]
[1729626501389,0.27369897,67595.0,67593.0,0.02316162]
[1729626501853,0.12575897,67595.0,67593.0,0.02481362]
[1729626502078,0.26412629,67597.0,67593.0,0.02481362]
[1729626502304,0.26412629,67597.0,67593.0,0.001652]
[1729626502560,0.37667,67598.0,67593.0,0.001652]
[1729626502561,0.0808,67598.0,67593.0,0.001652]
[1729626502799,0.08001591,67599.0,67593.0,0.001652]
[1729626503046,0.147934,67598.0,67593.0,0.001652]
[1729626503498,0.30198,67599.0,67593.0,0.001652]
[1729626503722,0.449912,67599.0,67593.0,0.001652]
[1729626504264,0.147935,67598.0,67593.0,0.001652]
[1729626505612,0.147936,67597.0,67593.0,0.001652]
[1729626506499,0.27124543,67598.0,67593.0,0.001652]
[1729626507648,0.147942,67594.0,67593.0,0.001652]
[1729626507871,0.29690115,67594.0,67593.0,0.001652]
[1729626518439,0.14895915,67594.0,67593.0,0.001652]
[1729626520261,0.1931759,67594.0,67593.0,0.001652]
[1729626523311,0.14895915,67594.0,67593.0,0.001652]
[1729626523551,0.22923894,67594.0,67593.0,0.001652]
[1729626525754,0.27355438,67594.0,67588.0,0.11453951]
[1729626525974,0.11618929,67593.0,67588.0,0.11453951]
[1729626526404,0.11618929,67593.0,67586.0,0.297567]
[1729626526624,0.06381168,67592.0,67589.0,0.147952]
[1729626526879,0.11618929,67593.0,67589.0,0.147952]
[1729626527583,0.11618929,67593.0,67592.0,0.147946]
[1729626527826,0.24337316,67597.0,67592.0,0.147946]
[1729626527827,0.04431544,67597.0,67596.0,0.147937]
[1729626528057,0.04431544,67601.0,67599.0,0.147931]
[1729626528279,0.22196409,67600.0,67599.0,0.147931]
[1729626528518,0.14895915,67601.0,67600.0,0.147928]
[1729626528960,0.14895915,67601.0,67599.0,0.14793]
[1729626529435,0.14895915,67601.0,67594.0,0.002]
[1729626529665,0.14895915,67601.0,67600.0,0.147928]
[1729626529880,0.14895915,67601.0,67599.0,0.14793]
[1729626530774,0.14895915,67601.0,67596.0,0.295875]
[1729626530992,0.14895915,67601.0,67598.0,0.443796]
[1729626531641,0.14895915,67601.0,67598.0,0.295865]
[1729626531868,0.14895915,67601.0,67600.0,0.147928]
[1729626532531,0.04430937,67603.0,67598.0,0.11618929]
[1729626532754,0.06646406,67606.0,67601.0,0.147925]
[1729626532755,0.005,67606.0,67601.0,0.147925]
[1729626532969,0.04487823,67605.0,67603.0,0.147921]
[1729626533417,0.12118929,67606.0,67603.0,0.147921]
[1729626533638,0.12118929,67606.0,67603.0,0.147922]
[1729626534785,0.12118929,67606.0,67601.0,0.295851]
[1729626535021,0.12118929,67606.0,67601.0,0.147926]
[1729626535233,0.14895915,67605.0,67592.0,0.0998]
[1729626535456,0.11618929,67600.0,67598.0,0.147932]
[1729626535687,0.11618929,67600.0,67597.0,0.147934]
[1729626535902,0.11618929,67600.0,67598.0,0.147933]
[1729626536127,0.16746673,67600.0,67599.0,0.147931]
[1729626536343,0.31642588,67600.0,67589.0,0.295906]
[1729626536555,0.14895915,67599.0,67597.0,0.147934]
[1729626537025,0.14895915,67599.0,67598.0,0.147933]
[1729626537444,0.14895915,67599.0,67597.0,0.295871]
[1729626537667,0.14895915,67599.0,67598.0,0.147933]
[1729626538528,0.14895915,67599.0,67594.0,0.295883]
[1729626538787,0.14895915,67599.0,67597.0,0.147935]
[1729626539270,0.14895915,67599.0,67595.0,0.295879]
[1729626539498,0.21820866,67599.0,67596.0,0.147936]
[1729626540364,0.21820866,67599.0,67595.0,0.295879]
[1729626540582,0.21820866,67599.0,67597.0,0.147934]
[1729626542615,0.21820866,67599.0,67598.0,0.147933]
[1729626542829,0.21820866,67599.0,67597.0,0.147935]
[1729626543035,0.02696494,67598.0,67597.0,0.147935]
[1729626543261,0.39788818,67598.0,67590.0,0.295901]
[1729626543512,0.39788818,67598.0,67589.0,0.001652]
[1729626543513,0.11618929,67592.0,67589.0,0.001652]
[1729626543737,0.13061673,67591.0,67589.0,0.149604]
[1729626544178,0.13061673,67591.0,67590.0,0.14795]
[1729626545798,0.08,67591.0,67590.0,0.14795]
[1729626547151,0.11618929,67592.0,67591.0,0.147948]
[1729626547372,0.11618929,67592.0,67589.0,0.297557]
[1729626547615,0.11618929,67592.0,67590.0,0.14795]
[1729626547827,0.11618929,67592.0,67589.0,0.297557]
[1729626548072,0.17093046,67592.0,67591.0,0.147948]
[1729626549454,0.0443237,67594.0,67590.0,0.443851]
[1729626549694,0.30852255,67596.0,67595.0,0.147939]
[1729626549695,0.0443237,67596.0,67595.0,0.147939]
[1729626549969,0.06648555,67598.0,67592.0,0.295893]
[1729626549970,0.0443237,67598.0,67596.0,0.147937]
[1729626550201,0.0493237,67599.0,67596.0,0.147937]
[1729626550418,0.33074238,67599.0,67596.0,0.147937]
[1729626550639,0.33074238,67599.0,67595.0,0.147939]
[1729626550640,0.0443237,67598.0,67595.0,0.147939]
[1729626550867,0.47950038,67599.0,67594.0,0.147941]
[1729626551101,0.14628295,67598.0,67594.0,0.147941]
[1729626551315,0.14628295,67598.0,67592.0,0.096652]
[1729626551316,0.44214995,67598.0,67592.0,0.001652]
[1729626551551,0.04432362,67597.0,67592.0,0.001652]
[1729626551761,0.04796161,67596.0,67593.0,0.147944]
[1729626552643,0.04796161,67596.0,67594.0,0.147941]
[1729626552864,0.04796161,67596.0,67593.0,0.147944]
[1729626553084,0.04796161,67596.0,67592.0,0.001652]
[1729626553085,0.19590061,67596.0,67592.0,0.001652]
[1729626553291,0.04796161,67596.0,67592.0,0.149596]
[1729626553961,0.1315691,67595.0,67593.0,0.147943]
[1729626557564,0.19589961,67596.0,67592.0,0.001652]
[1729626557772,0.04796161,67596.0,67592.0,0.001652]
[1729626557979,0.26413329,67593.0,67592.0,0.001652]
[1729626559581,1.22514125,67593.0,67592.0,0.001652]
[1729626559800,1.26232641,67593.0,67592.0,0.001652]
[1729626560047,1.18428722,67593.0,67592.0,0.001652]
[1729626560491,1.18429566,67593.0,67592.0,0.001652]
[1729626561370,0.78688566,67593.0,67592.0,0.001652]
[1729626561818,1.18429566,67593.0,67592.0,0.001652]
[1729626563704,1.29508241,67593.0,67592.0,0.001652]
[1729626564348,1.18429566,67593.0,67592.0,0.001652]
[1729626564560,1.29507415,67593.0,67592.0,0.001652]
[1729626565944,1.30035167,67593.0,67592.0,0.001652]
[1729626567437,1.02592652,67593.0,67592.0,0.001652]
[1729626576902,1.02675252,67593.0,67592.0,0.001652]
[1729626577557,1.6623059,67593.0,67592.0,0.001652]
[1729626577777,1.44034181,67593.0,67592.0,0.001652]
[1729626578903,1.50426909,67593.0,67592.0,0.001652]
[1729626579122,1.47149923,67593.0,67592.0,0.001652]
[1729626579779,1.22446528,67593.0,67592.0,0.001652]
[1729626580003,1.33865457,67593.0,67592.0,0.001652]
[1729626580285,1.45484386,67593.0,67592.0,0.001652]
[1729626580528,1.73764767,67593.0,67592.0,0.001652]
[1729626580748,1.60380301,67593.0,67592.0,0.001652]
[1729626581652,1.60379258,67593.0,67592.0,0.001652]
[1729626585712,1.71998187,67593.0,67592.0,0.001652]
[1729626586163,0.31895,67590.0,67589.0,0.001652]
[1729626586395,0.71560071,67587.0,67586.0,0.00165]
[1729626586630,1.47156395,67587.0,67586.0,0.00165]
[1729626591059,1.47146553,67587.0,67586.0,0.00165]
[1729626591282,1.62042468,67587.0,67586.0,0.00165]
[1729626593990,1.50423539,67587.0,67586.0,0.00165]
[1729626594627,0.162983,67575.0,67571.0,0.0965]
[1729626594846,0.82554144,67575.0,67572.0,0.22196409]
[1729626595057,0.82554144,67575.0,67572.0,0.0811]
[1729626595058,0.41313144,67575.0,67572.0,0.0811]
[1729626595553,0.26514844,67575.0,67572.0,0.0811]
[1729626598386,0.26514844,67575.0,67571.0,0.0965]
[1729626600298,0.34817481,67575.0,67571.0,0.0965]
[1729626600568,0.41313144,67575.0,67571.0,0.0965]
[1729626600989,0.26514844,67575.0,67567.0,0.1749]
[1729626601218,0.26514844,67575.0,67574.0,0.02482377]
[1729626601652,0.14895915,67575.0,67574.0,0.02482377]
[1729626601868,0.26514844,67575.0,67574.0,0.02482377]
[1729626602511,0.26514844,67575.0,67574.0,0.001652]
[1729626603624,0.41313144,67575.0,67574.0,0.001652]
[1729626604056,0.26514844,67575.0,67574.0,0.001652]
[1729626604301,0.34817631,67575.0,67574.0,0.001652]
[1729626604714,0.26514844,67575.0,67574.0,0.001652]
[1729626604927,0.41313144,67575.0,67574.0,0.001652]
[1729626605367,0.41313144,67575.0,67556.0,0.005]
[1729626605368,0.11618929,67568.0,67558.0,0.0974]
[1729626605610,0.11618929,67568.0,67557.0,0.22196409]
[1729626605611,0.006673,67567.0,67564.0,0.22196409]
[1729626605836,0.006673,67567.0,67565.0,0.0974]
[1729626606068,0.14895915,67570.0,67565.0,0.0974]
[1729626606284,0.00668407,67566.0,67565.0,0.0974]
[1729626606504,0.14895915,67570.0,67565.0,0.0974]
[1729626606722,0.00668983,67566.0,67565.0,0.0974]
[1729626606986,0.11618929,67568.0,67565.0,0.0974]
[1729626607203,0.14801,67563.0,67554.0,0.001652]
[1729626607417,0.48711253,67566.0,67554.0,0.001652]
[1729626607418,0.11618929,67557.0,67554.0,0.001652]
[1729626608067,0.00666191,67556.0,67554.0,0.006652]
[1729626608285,0.00666191,67556.0,67554.0,0.001652]
[1729626608504,0.11618929,67557.0,67554.0,0.001652]
[1729626608733,0.22196409,67564.0,67554.0,0.001652]
[1729626608734,0.00666191,67555.0,67554.0,0.154681]
[1729626608953,0.37092324,67564.0,67554.0,0.12284129]
[1729626609185,0.00666191,67563.0,67554.0,0.41889929]
[1729626609486,0.00666191,67563.0,67561.0,0.11618929]
[1729626609692,0.00666191,67563.0,67562.0,0.230112]
[1729626609928,0.12118929,67574.0,67562.0,0.0821]
[1729626610173,0.14895915,67572.0,67563.0,0.0999]
[1729626610406,0.15562106,67572.0,67563.0,0.0999]
[1729626610631,0.11618929,67571.0,67563.0,0.0999]
[1729626610896,0.11618929,67568.0,67563.0,0.0999]
[1729626611344,0.00666191,67567.0,67563.0,0.0999]
[1729626611797,0.11618929,67568.0,67565.0,0.001652]
[1729626612466,0.16837898,67568.0,67565.0,0.001652]
[1729626613947,0.14895915,67567.0,67565.0,0.001652]
[1729626614184,0.16837898,67564.0,67558.0,0.081]
[1729626614424,0.5688652,67573.0,67558.0,0.229019]
[1729626614425,0.005,67570.0,67558.0,0.229019]
[1729626614697,0.005,67570.0,67558.0,0.081]
[1729626614698,0.14895915,67569.0,67558.0,0.081]
[1729626614947,0.22696409,67572.0,67561.0,0.148012]
[1729626615162,0.14895915,67571.0,67561.0,0.148013]
[1729626615411,0.14895915,67571.0,67562.0,0.002]
[1729626615643,0.22196409,67572.0,67562.0,0.150011]
[1729626617039,0.22196409,67572.0,67563.0,0.0973]
[1729626619162,0.17513027,67574.0,67563.0,0.0973]
[1729626619376,0.04429136,67579.0,67566.0,0.0973]
[1729626619622,0.22196409,67578.0,67570.0,0.0973]
[1729626620103,0.22196409,67578.0,67572.0,0.147989]
[1729626620328,0.22196409,67578.0,67570.0,0.245293]
[1729626620560,0.22196409,67578.0,67570.0,0.0973]
[1729626620784,0.46430798,67584.0,67570.0,0.0973]
[1729626620785,0.19226236,67581.0,67570.0,0.0973]
[1729626621514,0.147971,67581.0,67570.0,0.0973]
[1729626621755,0.04429136,67581.0,67570.0,0.0973]
[1729626621977,0.22196409,67578.0,67570.0,0.0973]
[1729626622205,0.147976,67579.0,67570.0,0.0973]
[1729626622879,0.04429136,67579.0,67570.0,0.0973]
[1729626623311,0.16837898,67580.0,67570.0,0.0973]
[1729626623312,0.21267034,67580.0,67570.0,0.0973]
[1729626623588,0.04429136,67584.0,67579.0,0.0924]
[1729626623860,0.26625545,67586.0,67579.0,0.0924]
[1729626624068,0.08858272,67591.0,67579.0,0.0924]
[1729626624069,0.22196409,67591.0,67585.0,0.005]
[1729626624527,0.22196409,67591.0,67582.0,0.147966]
[1729626624746,0.16837898,67589.0,67580.0,0.0785]
[1729626624990,0.14895915,67588.0,67580.0,0.0785]
[1729626625209,0.14895915,67588.0,67578.0,0.005]
[1729626625210,0.147965,67584.0,67578.0,0.005]
[1729626625648,0.147965,67584.0,67573.0,0.0993]
[1729626625649,0.16837898,67581.0,67573.0,0.0993]
[1729626625890,0.147971,67581.0,67573.0,0.0993]
[1729626626118,0.16837898,67581.0,67570.0,0.084052]
[1729626626627,0.19225936,67582.0,67571.0,0.147992]
[1729626627944,0.04429136,67581.0,67571.0,0.147992]